[Event "*** Titled Tuesday Blitz"]
[Site "Chess.com"]
[Date "2020.04.14"]
[Round "2"]
[White "allvim"]
[Black "IM_Tissir"]
[Result "0-1"]
[WhiteElo "2277"]
[BlackElo "2509"]
[TimeControl "180+1"]
[EndTime "10:18:03 PDT"]
[Termination "IM_Tissir won by checkmate"]

1. e4 {[%clk 0:03:00.7]} 1... c5 {[%clk 0:02:59]} 2. Nf3 {[%clk 0:02:44.7]} 2...
e6 {[%clk 0:02:58.4]} 3. g3 {[%clk 0:02:23.2]} 3... Nc6 {[%clk 0:02:50.5]} 4.
Bg2 {[%clk 0:02:21.6]} 4... d6 {[%clk 0:02:37.7]} 5. O-O {[%clk 0:02:18.4]} 5...
Nf6 {[%clk 0:02:37.9]} 6. Qe2 {[%clk 0:02:15]} 6... Be7 {[%clk 0:02:37]} 7. c3
{[%clk 0:02:13.7]} 7... O-O {[%clk 0:02:34.5]} 8. d4 {[%clk 0:02:11.8]} 8... Qc7
{[%clk 0:02:34.2]} 9. Rd1 {[%clk 0:02:10.7]} 9... a6 {[%clk 0:02:28.1]} 10. a4
{[%clk 0:01:59.6]} 10... Re8 {[%clk 0:02:20.8]} 11. Nbd2 {[%clk 0:01:47.7]}
11... cxd4 {[%clk 0:01:30.4]} 12. cxd4 {[%clk 0:01:46.7]} 12... e5 {[%clk
0:01:30.5]} 13. Nf1 {[%clk 0:01:34.4]} 13... Bg4 {[%clk 0:01:29]} 14. d5 {[%clk
0:01:12]} 14... Nd4 {[%clk 0:01:27.9]} 15. Qd3 {[%clk 0:01:12.1]} 15... Nc2
{[%clk 0:01:04.4]} 16. Rb1 {[%clk 0:01:07.6]} 16... Nb4 {[%clk 0:01:04.2]} 17.
Qe3 {[%clk 0:00:56.3]} 17... a5 {[%clk 0:00:58.8]} 18. Bd2 {[%clk 0:00:54.8]}
18... Qc2 {[%clk 0:00:51.4]} 19. Bxb4 {[%clk 0:00:51.9]} 19... axb4 {[%clk
0:00:52.3]} 20. h3 {[%clk 0:00:51.8]} 20... Bxf3 {[%clk 0:00:48.5]} 21. Bxf3
{[%clk 0:00:52.7]} 21... Qxa4 {[%clk 0:00:47.9]} 22. Nd2 {[%clk 0:00:49.4]}
22... Rec8 {[%clk 0:00:44.1]} 23. b3 {[%clk 0:00:43.9]} 23... Qd7 {[%clk
0:00:39.3]} 24. Nc4 {[%clk 0:00:44.1]} 24... Qxh3 {[%clk 0:00:33]} 25. Bg2
{[%clk 0:00:38.2]} 25... Qh5 {[%clk 0:00:31.9]} 26. Rdc1 {[%clk 0:00:37.2]}
26... b5 {[%clk 0:00:28.5]} 27. Nb6 {[%clk 0:00:34.1]} 27... Rxc1+ {[%clk
0:00:26.5]} 28. Rxc1 {[%clk 0:00:33.2]} 28... Rf8 {[%clk 0:00:25.4]} 29. Rc7
{[%clk 0:00:30.8]} 29... Ng4 {[%clk 0:00:24.7]} 30. Qe2 {[%clk 0:00:26.4]} 30...
Bd8 {[%clk 0:00:23.8]} 31. Rb7 {[%clk 0:00:26.5]} 31... f5 {[%clk 0:00:19.3]}
32. exf5 {[%clk 0:00:15.8]} 32... Rxf5 {[%clk 0:00:18.8]} 33. Bf3 {[%clk
0:00:14.2]} 33... Qh2+ {[%clk 0:00:18.3]} 34. Kf1 {[%clk 0:00:14.3]} 34... Qh3+
{[%clk 0:00:16]} 35. Ke1 {[%clk 0:00:13.6]} 35... Nh2 {[%clk 0:00:14.4]} 36. Rb8
{[%clk 0:00:12.4]} 36... Nxf3+ {[%clk 0:00:13.4]} 37. Kd1 {[%clk 0:00:12.9]}
37... Rf8 {[%clk 0:00:11.8]} 38. Qxb5 {[%clk 0:00:12.1]} 38... Bxb6 {[%clk
0:00:10.8]} 39. Rxf8+ {[%clk 0:00:09.8]} 39... Kxf8 {[%clk 0:00:10.7]} 40. Qxb6
{[%clk 0:00:10.7]} 40... Qf1+ {[%clk 0:00:10.7]} 41. Kc2 {[%clk 0:00:10.2]}
41... Qe2+ {[%clk 0:00:10.7]} 42. Kb1 {[%clk 0:00:10.1]} 42... Nd2+ {[%clk
0:00:10.1]} 43. Kc1 {[%clk 0:00:09.1]} 43... Nxb3+ {[%clk 0:00:09.6]} 44. Kb1
{[%clk 0:00:10]} 44... Qd3+ {[%clk 0:00:08.9]} 45. Kb2 {[%clk 0:00:09.4]} 45...
Qc3+ {[%clk 0:00:09.2]} 46. Ka2 {[%clk 0:00:09.5]} 46... Qc2# {[%clk 0:00:09.1]}
0-1

[Event "*** Titled Tuesday Blitz"]
[Site "Chess.com"]
[Date "2020.04.14"]
[Round "2"]
[White "BIG_Pirate"]
[Black "Spriteball"]
[Result "1-0"]
[WhiteElo "2368"]
[BlackElo "1902"]
[TimeControl "180+1"]
[EndTime "10:18:04 PDT"]
[Termination "BIG_Pirate won by resignation"]

1. Nf3 {[%clk 0:03:00.9]} 1... Nf6 {[%clk 0:02:59.1]} 2. c4 {[%clk 0:03:00.9]}
2... e6 {[%clk 0:02:59.4]} 3. g3 {[%clk 0:03:01.1]} 3... d5 {[%clk 0:02:59.7]}
4. Bg2 {[%clk 0:03:01.4]} 4... Be7 {[%clk 0:02:58.6]} 5. O-O {[%clk 0:03:01.3]}
5... O-O {[%clk 0:02:58.9]} 6. d4 {[%clk 0:03:01.4]} 6... dxc4 {[%clk 0:02:56]}
7. Qc2 {[%clk 0:03:01.4]} 7... b6 {[%clk 0:02:56.3]} 8. Ne5 {[%clk 0:02:50.5]}
8... Qxd4 {[%clk 0:02:56.1]} 9. Bxa8 {[%clk 0:02:49]} 9... Qxe5 {[%clk
0:02:56.4]} 10. Bg2 {[%clk 0:02:43.5]} 10... Nd5 {[%clk 0:02:35.6]} 11. Qxc4
{[%clk 0:02:05.3]} 11... Ba6 {[%clk 0:02:33.6]} 12. Qe4 {[%clk 0:02:05.6]} 12...
Qxe4 {[%clk 0:02:28.7]} 13. Bxe4 {[%clk 0:02:05.7]} 13... Bxe2 {[%clk
0:02:29.6]} 14. Re1 {[%clk 0:02:05.6]} 14... Bc4 {[%clk 0:02:24.2]} 15. Nd2
{[%clk 0:02:01.1]} 15... Bb4 {[%clk 0:01:46.6]} 16. a3 {[%clk 0:01:46.5]} 16...
Bxd2 {[%clk 0:01:32.9]} 17. Bxd2 {[%clk 0:01:47.4]} 17... c5 {[%clk 0:01:20.2]}
18. b4 {[%clk 0:01:38.7]} 18... cxb4 {[%clk 0:01:15.1]} 19. axb4 {[%clk
0:01:39.6]} 19... a6 {[%clk 0:01:11]} 20. Rec1 {[%clk 0:01:32.4]} 20... b5
{[%clk 0:01:07.5]} 21. Bxd5 {[%clk 0:01:16.3]} 21... exd5 {[%clk 0:00:58]} 22.
Bc3 {[%clk 0:00:59.1]} 22... Re8 {[%clk 0:00:52.1]} 23. Re1 {[%clk 0:00:58.5]}
23... Re6 {[%clk 0:00:47.6]} 24. f4 {[%clk 0:00:49.2]} 24... Kf8 {[%clk
0:00:12.5]} 25. Rxe6 {[%clk 0:00:45.7]} 25... fxe6 {[%clk 0:00:12.6]} 26. Be5
{[%clk 0:00:46.6]} 26... Nc6 {[%clk 0:00:09]} 27. Rxa6 {[%clk 0:00:46.8]} 27...
Nxe5 {[%clk 0:00:09.4]} 28. fxe5 {[%clk 0:00:47.4]} 28... Kf7 {[%clk 0:00:09.9]}
29. Rd6 {[%clk 0:00:43.7]} 29... Ke7 {[%clk 0:00:09.6]} 30. Kf2 {[%clk
0:00:43.2]} 30... Kf7 {[%clk 0:00:09.8]} 31. Ke3 {[%clk 0:00:43.4]} 31... Ke7
{[%clk 0:00:09.6]} 32. Kd4 {[%clk 0:00:43.5]} 32... g5 {[%clk 0:00:08.1]} 33.
Kc5 {[%clk 0:00:40]} 33... h5 {[%clk 0:00:06.8]} 34. Rb6 {[%clk 0:00:34.2]}
34... h4 {[%clk 0:00:05.3]} 35. Rb7+ {[%clk 0:00:31.4]} 35... Ke8 {[%clk
0:00:03.6]} 36. Rg7 {[%clk 0:00:24.5]} 36... hxg3 {[%clk 0:00:01.8]} 37. hxg3
{[%clk 0:00:25.4]} 37... Bd3 {[%clk 0:00:02.3]} 38. Rxg5 {[%clk 0:00:23.1]}
38... Bc4 {[%clk 0:00:02.3]} 39. Rg7 {[%clk 0:00:22.2]} 39... Kf8 {[%clk
0:00:02.3]} 40. Rd7 {[%clk 0:00:21.8]} 40... Ke8 {[%clk 0:00:02.3]} 41. Rb7
{[%clk 0:00:18.7]} 41... Kf8 {[%clk 0:00:02.4]} 42. g4 {[%clk 0:00:18.3]} 42...
Kg8 {[%clk 0:00:02.5]} 43. g5 {[%clk 0:00:18.6]} 43... Kf8 {[%clk 0:00:03]} 44.
g6 {[%clk 0:00:15.7]} 44... Kg8 {[%clk 0:00:03.9]} 45. Rc7 {[%clk 0:00:13.8]}
45... Bd3 {[%clk 0:00:02.9]} 46. Rb7 {[%clk 0:00:09.6]} 46... Bc4 {[%clk
0:00:03.1]} 47. Rxb5 {[%clk 0:00:09.3]} 47... Bxb5 {[%clk 0:00:03.2]} 48. Kxb5
{[%clk 0:00:09.4]} 48... d4 {[%clk 0:00:04.1]} 49. Kc4 {[%clk 0:00:09.3]} 49...
Kg7 {[%clk 0:00:05]} 50. b5 {[%clk 0:00:09.1]} 50... Kxg6 {[%clk 0:00:05.9]} 51.
b6 {[%clk 0:00:09.5]} 51... Kf5 {[%clk 0:00:06.7]} 52. Kxd4 {[%clk 0:00:09.7]}
52... Kf4 {[%clk 0:00:07.6]} 53. b7 {[%clk 0:00:10.2]} 53... Kf5 {[%clk
0:00:08.5]} 54. b8=Q {[%clk 0:00:11.1]} 54... Kf4 {[%clk 0:00:09.1]} 55. Qf8+
{[%clk 0:00:11.4]} 1-0

[Event "*** Titled Tuesday Blitz"]
[Site "Chess.com"]
[Date "2020.04.14"]
[Round "2"]
[White "Fandorine"]
[Black "jposthuma"]
[Result "1-0"]
[WhiteElo "2918"]
[BlackElo "2603"]
[TimeControl "180+1"]
[EndTime "10:18:07 PDT"]
[Termination "Fandorine won on time"]

1. e4 {[%clk 0:03:00.9]} 1... c6 {[%clk 0:02:59.7]} 2. Nf3 {[%clk 0:02:59.6]}
2... d5 {[%clk 0:03:00.6]} 3. d3 {[%clk 0:02:59.7]} 3... dxe4 {[%clk 0:03:00.3]}
4. dxe4 {[%clk 0:03:00.6]} 4... Qxd1+ {[%clk 0:03:00.9]} 5. Kxd1 {[%clk
0:03:01]} 5... Nd7 {[%clk 0:02:54.7]} 6. Nfd2 {[%clk 0:02:58.2]} 6... e5 {[%clk
0:02:53.1]} 7. a4 {[%clk 0:02:56]} 7... Bc5 {[%clk 0:02:45.1]} 8. f3 {[%clk
0:02:55.6]} 8... Ne7 {[%clk 0:02:23.3]} 9. c3 {[%clk 0:02:53.4]} 9... Be3 {[%clk
0:02:06.7]} 10. Na3 {[%clk 0:02:47.8]} 10... Ng6 {[%clk 0:01:58.9]} 11. Nac4
{[%clk 0:02:44.7]} 11... Bg5 {[%clk 0:01:53]} 12. Nd6+ {[%clk 0:02:43.1]} 12...
Ke7 {[%clk 0:01:52.8]} 13. Nxc8+ {[%clk 0:02:43.5]} 13... Raxc8 {[%clk
0:01:53.4]} 14. Kc2 {[%clk 0:02:43.8]} 14... Rhd8 {[%clk 0:01:49]} 15. b4 {[%clk
0:02:10]} 15... Ndf8 {[%clk 0:01:31.2]} 16. g3 {[%clk 0:01:56.5]} 16... h5
{[%clk 0:01:25]} 17. h4 {[%clk 0:01:52.1]} 17... Bh6 {[%clk 0:01:23.1]} 18. Bh3
{[%clk 0:01:36.1]} 18... Ne6 {[%clk 0:01:22.8]} 19. Nc4 {[%clk 0:01:34.6]} 19...
Bxc1 {[%clk 0:01:20.3]} 20. Rhxc1 {[%clk 0:01:35]} 20... f6 {[%clk 0:01:14]} 21.
Ne3 {[%clk 0:01:25.3]} 21... Rc7 {[%clk 0:00:58.8]} 22. Nf5+ {[%clk 0:01:13.9]}
22... Kf7 {[%clk 0:00:55.7]} 23. Rd1 {[%clk 0:01:13.6]} 23... Rxd1 {[%clk
0:00:34.6]} 24. Rxd1 {[%clk 0:01:13]} 24... Ngf8 {[%clk 0:00:35.5]} 25. Bf1
{[%clk 0:00:46.6]} 25... g6 {[%clk 0:00:30.3]} 26. Nd6+ {[%clk 0:00:39]} 26...
Ke7 {[%clk 0:00:28.8]} 27. a5 {[%clk 0:00:36.8]} 27... a6 {[%clk 0:00:18.6]} 28.
Bc4 {[%clk 0:00:18.1]} 28... Rd7 {[%clk 0:00:18.4]} 29. Nc8+ {[%clk 0:00:11.4]}
29... Kd8 {[%clk 0:00:18.6]} 30. Nb6 {[%clk 0:00:06.1]} 30... Rxd1 {[%clk
0:00:17.8]} 31. Kxd1 {[%clk 0:00:07]} 31... Kc7 {[%clk 0:00:14.7]} 32. Ke2
{[%clk 0:00:07.2]} 32... Kd6 {[%clk 0:00:11.5]} 33. Na4 {[%clk 0:00:06.8]} 33...
Nd7 {[%clk 0:00:10.7]} 34. Kd3 {[%clk 0:00:05]} 34... Ke7 {[%clk 0:00:07.5]} 35.
Ke3 {[%clk 0:00:04.3]} 35... Kd6 {[%clk 0:00:07.8]} 36. Bb3 {[%clk 0:00:03.9]}
36... Ke7 {[%clk 0:00:06.3]} 37. Bc2 {[%clk 0:00:03.6]} 37... Nc7 {[%clk
0:00:02.7]} 38. Bd3 {[%clk 0:00:02.6]} 38... Ne6 {[%clk 0:00:02]} 39. Nb2 {[%clk
0:00:03.1]} 39... Kd6 {[%clk 0:00:02.2]} 40. Bc4 {[%clk 0:00:03.4]} 40... Ke7
{[%clk 0:00:02.5]} 41. Nd3 {[%clk 0:00:03.7]} 41... Kd6 {[%clk 0:00:02.7]} 42.
f4 {[%clk 0:00:03.8]} 42... Ke7 {[%clk 0:00:02.5]} 43. Bb3 {[%clk 0:00:02.3]}
43... Kd6 {[%clk 0:00:02.5]} 44. Bd1 {[%clk 0:00:02.8]} 44... Ke7 {[%clk
0:00:02.9]} 45. f5 {[%clk 0:00:03.3]} 45... gxf5 {[%clk 0:00:03.1]} 46. exf5
{[%clk 0:00:04.2]} 46... Ng7 {[%clk 0:00:03.8]} 47. g4 {[%clk 0:00:05.1]} 47...
hxg4 {[%clk 0:00:03.8]} 48. Bxg4 {[%clk 0:00:06]} 48... Nf8 {[%clk 0:00:04.3]}
49. Nc5 {[%clk 0:00:06.2]} 1-0

[Event "*** Titled Tuesday Blitz"]
[Site "Chess.com"]
[Date "2020.04.14"]
[Round "2"]
[White "Mbneu"]
[Black "Imre91"]
[Result "0-1"]
[WhiteElo "2229"]
[BlackElo "2591"]
[TimeControl "180+1"]
[EndTime "10:18:07 PDT"]
[Termination "Imre91 won by resignation"]

1. d4 {[%clk 0:02:59.2]} 1... Nf6 {[%clk 0:02:59.3]} 2. c4 {[%clk 0:02:59.3]}
2... c5 {[%clk 0:02:59.2]} 3. d5 {[%clk 0:02:59.3]} 3... b5 {[%clk 0:02:59.7]}
4. a4 {[%clk 0:02:59.6]} 4... b4 {[%clk 0:02:59]} 5. g3 {[%clk 0:02:58.8]} 5...
g6 {[%clk 0:02:58.6]} 6. b3 {[%clk 0:02:58.6]} 6... Bg7 {[%clk 0:02:58]} 7. Bb2
{[%clk 0:02:56.6]} 7... O-O {[%clk 0:02:58.3]} 8. Bg2 {[%clk 0:02:56.4]} 8... d6
{[%clk 0:02:57.7]} 9. Nd2 {[%clk 0:02:53.5]} 9... a5 {[%clk 0:02:57.9]} 10. e4
{[%clk 0:02:52.8]} 10... Ra7 {[%clk 0:02:57.2]} 11. Ne2 {[%clk 0:02:51.7]} 11...
e6 {[%clk 0:02:57.2]} 12. dxe6 {[%clk 0:02:50.2]} 12... Bxe6 {[%clk 0:02:52.8]}
13. O-O {[%clk 0:02:45.3]} 13... Nc6 {[%clk 0:02:52.4]} 14. Nf4 {[%clk
0:02:41.5]} 14... Re8 {[%clk 0:02:44.8]} 15. h3 {[%clk 0:02:33.7]} 15... Rae7
{[%clk 0:02:41.1]} 16. Qc2 {[%clk 0:02:27]} 16... Qb8 {[%clk 0:02:18.3]} 17.
Rad1 {[%clk 0:02:22.3]} 17... Bc8 {[%clk 0:02:13.2]} 18. f3 {[%clk 0:02:07.1]}
18... h5 {[%clk 0:02:04.7]} 19. h4 {[%clk 0:02:03.4]} 19... Ne5 {[%clk
0:02:02.8]} 20. Rfe1 {[%clk 0:01:54.3]} 20... Bb7 {[%clk 0:02:02.3]} 21. Nf1
{[%clk 0:01:52.9]} 21... Bh6 {[%clk 0:02:00.8]} 22. Bc1 {[%clk 0:01:51.2]} 22...
Kh7 {[%clk 0:01:59.2]} 23. Ne3 {[%clk 0:01:46.6]} 23... Nc6 {[%clk 0:01:55.2]}
24. Bb2 {[%clk 0:01:44]} 24... Bxf4 {[%clk 0:01:44.6]} 25. gxf4 {[%clk
0:01:44.9]} 25... Ng8 {[%clk 0:01:36.5]} 26. Nd5 {[%clk 0:01:42.4]} 26... Rd7
{[%clk 0:01:27.9]} 27. Bh3 {[%clk 0:01:39.3]} 27... Rdd8 {[%clk 0:01:18.8]} 28.
Bf6 {[%clk 0:01:36.1]} 28... Nd4 {[%clk 0:01:12.2]} 29. Bxd4 {[%clk 0:01:33.1]}
29... Bxd5 {[%clk 0:01:05.8]} 30. cxd5 {[%clk 0:01:31.5]} 30... cxd4 {[%clk
0:01:05.1]} 31. Rxd4 {[%clk 0:01:31.2]} 31... Qa7 {[%clk 0:01:03.3]} 32. Qf2
{[%clk 0:01:30.3]} 32... Nf6 {[%clk 0:01:00.1]} 33. Rc4 {[%clk 0:01:29.2]} 33...
Qe7 {[%clk 0:00:52]} 34. Rec1 {[%clk 0:01:28.4]} 34... Qf8 {[%clk 0:00:51]} 35.
Rc7 {[%clk 0:01:26.8]} 35... Re7 {[%clk 0:00:50.7]} 36. Qa7 {[%clk 0:01:25.5]}
36... Rde8 {[%clk 0:00:50.1]} 37. Rxe7 {[%clk 0:01:23.9]} 37... Rxe7 {[%clk
0:00:48.5]} 38. Rc7 {[%clk 0:01:24.6]} 38... Rxc7 {[%clk 0:00:46.8]} 39. Qxc7
{[%clk 0:01:25.2]} 39... Ng8 {[%clk 0:00:43.2]} 40. Qxa5 {[%clk 0:01:24.1]}
40... Qh6 {[%clk 0:00:42.4]} 41. Qb6 {[%clk 0:01:13.7]} 41... Qxf4 {[%clk
0:00:40.6]} 42. a5 {[%clk 0:01:11]} 42... Qxh4 {[%clk 0:00:39.5]} 43. Bg2 {[%clk
0:01:08]} 43... Qe1+ {[%clk 0:00:38.1]} 44. Kh2 {[%clk 0:01:08.3]} 44... h4
{[%clk 0:00:36.5]} 45. a6 {[%clk 0:01:05.8]} 45... Qg3+ {[%clk 0:00:36.2]} 46.
Kg1 {[%clk 0:01:05.7]} 46... h3 {[%clk 0:00:30.6]} 47. Qf2 {[%clk 0:01:04.9]}
47... h2+ {[%clk 0:00:30.2]} 48. Kf1 {[%clk 0:01:03.6]} 48... Qe5 {[%clk
0:00:29.9]} 49. a7 {[%clk 0:00:56.8]} 49... Qa1+ {[%clk 0:00:29.5]} 50. Ke2
{[%clk 0:00:57.1]} 50... Nf6 {[%clk 0:00:26.6]} 51. Qe3 {[%clk 0:00:45.8]} 51...
Nh5 {[%clk 0:00:21.7]} 52. Kf2 {[%clk 0:00:45.2]} 52... Qg1+ {[%clk 0:00:20.3]}
53. Ke2 {[%clk 0:00:44.6]} 53... Qxg2+ {[%clk 0:00:20.1]} 54. Kd3 {[%clk
0:00:44.8]} 54... Qf1+ {[%clk 0:00:19.7]} 55. Qe2 {[%clk 0:00:44.8]} 55... Qa1
{[%clk 0:00:17.8]} 56. Qxh2 {[%clk 0:00:43.8]} 56... Qc3+ {[%clk 0:00:17.9]} 57.
Ke2 {[%clk 0:00:43.6]} 57... Qc2+ {[%clk 0:00:17.8]} 58. Ke3 {[%clk 0:00:43.5]}
58... Qxb3+ {[%clk 0:00:17.9]} 59. Kf2 {[%clk 0:00:43.1]} 59... Qc2+ {[%clk
0:00:17.8]} 60. Kg1 {[%clk 0:00:43.2]} 60... Qb1+ {[%clk 0:00:18.1]} 61. Kg2
{[%clk 0:00:43.5]} 61... Qa2+ {[%clk 0:00:18.4]} 62. Kh3 {[%clk 0:00:43.5]}
62... Qxa7 {[%clk 0:00:17.9]} 63. Qxd6 {[%clk 0:00:43.4]} 63... b3 {[%clk
0:00:18.2]} 64. Qb4 {[%clk 0:00:41.8]} 64... Qf2 {[%clk 0:00:17.8]} 0-1

[Event "*** Titled Tuesday Blitz"]
[Site "Chess.com"]
[Date "2020.04.14"]
[Round "2"]
[White "LiemLe"]
[Black "LizaSolovyova"]
[Result "1-0"]
[WhiteElo "3008"]
[BlackElo "2608"]
[TimeControl "180+1"]
[EndTime "10:18:10 PDT"]
[Termination "LiemLe won on time"]

1. e4 {[%clk 0:03:00.9]} 1... e5 {[%clk 0:02:58.9]} 2. Nf3 {[%clk 0:03:00.7]}
2... d6 {[%clk 0:02:59.1]} 3. d4 {[%clk 0:03:00.3]} 3... Qe7 {[%clk 0:02:59.3]}
4. Nc3 {[%clk 0:02:59.2]} 4... c6 {[%clk 0:02:59]} 5. Bc4 {[%clk 0:02:49.3]}
5... h6 {[%clk 0:02:58.5]} 6. O-O {[%clk 0:02:48.6]} 6... Nf6 {[%clk 0:02:58.2]}
7. Re1 {[%clk 0:02:44.2]} 7... Qc7 {[%clk 0:02:57.1]} 8. a4 {[%clk 0:02:40.9]}
8... a5 {[%clk 0:02:56.8]} 9. b3 {[%clk 0:02:34]} 9... Bg4 {[%clk 0:02:55.1]}
10. Bb2 {[%clk 0:02:17.2]} 10... Nbd7 {[%clk 0:02:37.3]} 11. dxe5 {[%clk
0:02:05.2]} 11... dxe5 {[%clk 0:02:35.6]} 12. h3 {[%clk 0:02:04.8]} 12... Bh5
{[%clk 0:02:33.1]} 13. g4 {[%clk 0:02:04.4]} 13... Bg6 {[%clk 0:02:32.6]} 14.
Nh4 {[%clk 0:02:04.5]} 14... Bh7 {[%clk 0:02:32.4]} 15. Qf3 {[%clk 0:01:57.9]}
15... Bc5 {[%clk 0:02:23.9]} 16. Nf5 {[%clk 0:01:54]} 16... Bxf5 {[%clk
0:02:22.8]} 17. exf5 {[%clk 0:01:48.2]} 17... Rf8 {[%clk 0:02:06.9]} 18. Ne2
{[%clk 0:01:27.7]} 18... O-O-O {[%clk 0:01:57.8]} 19. Ng3 {[%clk 0:01:27.8]}
19... Bd4 {[%clk 0:01:47.6]} 20. c3 {[%clk 0:01:15.2]} 20... Bc5 {[%clk
0:01:39.8]} 21. Rad1 {[%clk 0:01:10]} 21... Nh7 {[%clk 0:01:28.2]} 22. Kg2
{[%clk 0:00:54.8]} 22... Ng5 {[%clk 0:01:25.9]} 23. Qe2 {[%clk 0:00:54.8]} 23...
f6 {[%clk 0:01:12.6]} 24. h4 {[%clk 0:00:53.5]} 24... Nf7 {[%clk 0:01:11.8]} 25.
Be6 {[%clk 0:00:53.5]} 25... Kb8 {[%clk 0:01:06.9]} 26. Ne4 {[%clk 0:00:48.6]}
26... Be7 {[%clk 0:00:57]} 27. b4 {[%clk 0:00:44.2]} 27... Nd6 {[%clk 0:00:43]}
28. Bc1 {[%clk 0:00:33.5]} 28... Nxe4 {[%clk 0:00:42.5]} 29. Qxe4 {[%clk
0:00:34.4]} 29... h5 {[%clk 0:00:37.5]} 30. g5 {[%clk 0:00:29]} 30... fxg5
{[%clk 0:00:33.9]} 31. hxg5 {[%clk 0:00:29.9]} 31... Nb6 {[%clk 0:00:16.4]} 32.
bxa5 {[%clk 0:00:29.1]} 32... Nd5 {[%clk 0:00:14.8]} 33. Bxd5 {[%clk 0:00:20.5]}
33... cxd5 {[%clk 0:00:14.8]} 34. Qxe5 {[%clk 0:00:20.8]} 34... Bd6 {[%clk
0:00:13.1]} 35. Qxd5 {[%clk 0:00:21.1]} 35... h4 {[%clk 0:00:10.9]} 36. a6
{[%clk 0:00:20.6]} 36... h3+ {[%clk 0:00:10.4]} 37. Kh1 {[%clk 0:00:20.9]} 37...
Bc5 {[%clk 0:00:03.7]} 38. Qxb7+ {[%clk 0:00:20]} 38... Qxb7+ {[%clk 0:00:04]}
39. axb7 {[%clk 0:00:20.9]} 39... Kxb7 {[%clk 0:00:04.9]} 40. Rxd8 {[%clk
0:00:18.1]} 40... Rxd8 {[%clk 0:00:05.8]} 41. Be3 {[%clk 0:00:18.8]} 41... Bd6
{[%clk 0:00:03.8]} 42. Rd1 {[%clk 0:00:18.4]} 42... Kc6 {[%clk 0:00:02.8]} 43.
a5 {[%clk 0:00:15.7]} 43... Rf8 {[%clk 0:00:03.1]} 44. a6 {[%clk 0:00:16.1]}
44... Rxf5 {[%clk 0:00:03.3]} 45. a7 {[%clk 0:00:16.2]} 45... Ra5 {[%clk
0:00:03.8]} 46. c4 {[%clk 0:00:15.4]} 46... Ra3 {[%clk 0:00:02.6]} 47. c5 {[%clk
0:00:14]} 47... Be5 {[%clk 0:00:02.2]} 48. f4 {[%clk 0:00:13.2]} 48... Rxe3
{[%clk 0:00:01.3]} 49. a8=Q+ {[%clk 0:00:12.5]} 1-0

[Event "*** Titled Tuesday Blitz"]
[Site "Chess.com"]
[Date "2020.04.14"]
[Round "2"]
[White "SketchyMoves"]
[Black "Taran2004"]
[Result "1-0"]
[WhiteElo "2630"]
[BlackElo "1998"]
[TimeControl "180+1"]
[EndTime "10:18:10 PDT"]
[Termination "SketchyMoves won by checkmate"]

1. e4 {[%clk 0:03:00.9]} 1... c5 {[%clk 0:02:59.4]} 2. Nc3 {[%clk 0:03:00.4]}
2... d6 {[%clk 0:02:57.6]} 3. f4 {[%clk 0:02:58.7]} 3... Nc6 {[%clk 0:02:55.7]}
4. Nf3 {[%clk 0:02:58.4]} 4... g6 {[%clk 0:02:56]} 5. Bb5 {[%clk 0:02:58.9]}
5... Bg7 {[%clk 0:02:55.4]} 6. Bxc6+ {[%clk 0:02:59.1]} 6... bxc6 {[%clk
0:02:55.3]} 7. d3 {[%clk 0:03:00]} 7... e6 {[%clk 0:02:52.8]} 8. O-O {[%clk
0:02:59.3]} 8... Ne7 {[%clk 0:02:52.8]} 9. Qe1 {[%clk 0:02:58]} 9... d5 {[%clk
0:02:53]} 10. e5 {[%clk 0:02:58]} 10... h5 {[%clk 0:02:51.4]} 11. Na4 {[%clk
0:02:57.8]} 11... c4 {[%clk 0:02:32]} 12. dxc4 {[%clk 0:02:39.9]} 12... dxc4
{[%clk 0:02:31.9]} 13. b3 {[%clk 0:02:09.1]} 13... cxb3 {[%clk 0:02:26.8]} 14.
axb3 {[%clk 0:02:08.3]} 14... Nd5 {[%clk 0:02:26.9]} 15. c4 {[%clk 0:02:06.3]}
15... Nb6 {[%clk 0:02:23.8]} 16. Be3 {[%clk 0:01:55.7]} 16... Nxa4 {[%clk
0:02:18.3]} 17. Rxa4 {[%clk 0:01:54.2]} 17... a6 {[%clk 0:02:12.4]} 18. Bc5
{[%clk 0:01:49.2]} 18... Bf8 {[%clk 0:02:10.5]} 19. Qb4 {[%clk 0:01:41.6]} 19...
Bxc5+ {[%clk 0:02:02.7]} 20. Qxc5 {[%clk 0:01:42.5]} 20... Bb7 {[%clk 0:02:02]}
21. Ng5 {[%clk 0:01:39.2]} 21... Qe7 {[%clk 0:01:59.9]} 22. Ne4 {[%clk
0:01:38.2]} 22... Qxc5+ {[%clk 0:01:56.1]} 23. Nxc5 {[%clk 0:01:39.1]} 23... Bc8
{[%clk 0:01:54.4]} 24. Rd1 {[%clk 0:01:34.7]} 24... Ke7 {[%clk 0:01:54.3]} 25.
Rd6 {[%clk 0:01:32]} 25... Rd8 {[%clk 0:01:53.6]} 26. Ne4 {[%clk 0:01:23.1]}
26... Bb7 {[%clk 0:01:46.2]} 27. Kf2 {[%clk 0:01:17.8]} 27... Rd7 {[%clk
0:01:41.1]} 28. g3 {[%clk 0:01:14.1]} 28... Rad8 {[%clk 0:01:37.5]} 29. h4
{[%clk 0:01:12.8]} 29... Rxd6 {[%clk 0:01:36.4]} 30. Nxd6 {[%clk 0:00:57.3]}
30... Rxd6 {[%clk 0:01:22.6]} 31. exd6+ {[%clk 0:00:56]} 31... Kxd6 {[%clk
0:01:23.5]} 32. b4 {[%clk 0:00:51.7]} 32... c5 {[%clk 0:01:14.5]} 33. bxc5+
{[%clk 0:00:47.2]} 33... Kxc5 {[%clk 0:01:12.8]} 34. Ke3 {[%clk 0:00:48.1]}
34... Bc8 {[%clk 0:01:02.6]} 35. Kd3 {[%clk 0:00:45.6]} 35... Bb7 {[%clk
0:01:01.5]} 36. Kc3 {[%clk 0:00:44.7]} 36... Bc8 {[%clk 0:00:52.9]} 37. Ra5+
{[%clk 0:00:44.1]} 37... Kc6 {[%clk 0:00:52.6]} 38. Kb4 {[%clk 0:00:41]} 38...
Bb7 {[%clk 0:00:51.8]} 39. Re5 {[%clk 0:00:38.3]} 39... Kb6 {[%clk 0:00:47.4]}
40. c5+ {[%clk 0:00:31.1]} 40... Kc6 {[%clk 0:00:47.2]} 41. Re3 {[%clk
0:00:29.1]} 41... a5+ {[%clk 0:00:40.7]} 42. Kc4 {[%clk 0:00:27.5]} 42... Ba6+
{[%clk 0:00:37.6]} 43. Kd4 {[%clk 0:00:27.7]} 43... a4 {[%clk 0:00:36.2]} 44.
Ra3 {[%clk 0:00:20.6]} 44... Kb5 {[%clk 0:00:32.2]} 45. Ra1 {[%clk 0:00:20.3]}
45... Bc8 {[%clk 0:00:27.1]} 46. Rb1+ {[%clk 0:00:19.2]} 46... Kc6 {[%clk
0:00:26.7]} 47. Rb6+ {[%clk 0:00:18.1]} 47... Kc7 {[%clk 0:00:26.6]} 48. Kc4
{[%clk 0:00:17.7]} 48... Bd7 {[%clk 0:00:23.6]} 49. Kb4 {[%clk 0:00:17.6]} 49...
Bc6 {[%clk 0:00:22.5]} 50. Ra6 {[%clk 0:00:16.6]} 50... f6 {[%clk 0:00:21.7]}
51. Ra7+ {[%clk 0:00:15.9]} 51... Bb7 {[%clk 0:00:21.5]} 52. Kxa4 {[%clk
0:00:14.1]} 52... e5 {[%clk 0:00:20.3]} 53. fxe5 {[%clk 0:00:14.3]} 53... fxe5
{[%clk 0:00:20.6]} 54. Kb5 {[%clk 0:00:13.7]} 54... Kb8 {[%clk 0:00:18.7]} 55.
Kb6 {[%clk 0:00:13.7]} 55... e4 {[%clk 0:00:17.7]} 56. Rxb7+ {[%clk 0:00:13.5]}
56... Kc8 {[%clk 0:00:18.6]} 57. Re7 {[%clk 0:00:13.4]} 57... e3 {[%clk
0:00:19.5]} 58. c6 {[%clk 0:00:12.3]} 58... e2 {[%clk 0:00:19.2]} 59. Re8#
{[%clk 0:00:12.3]} 1-0